fUST/lending_fUST_20250626
["ID","MTS","AMOUNT","RATE_DAILY","PERIOD"]
[367620001,1750877448547,-1521.43,0.00018082,2]
[367620002,1750877448557,-460.0,0.00018082,2]
[367620003,1750877448567,-680.21,0.00018082,2]
[367620004,1750877448576,-508.55,0.00018082,2]
[367620005,1750877448586,-398.38471586,0.00018082,2]
[367620006,1750877448595,-915.74,0.00018082,2]
[367620007,1750877448606,-616.37,0.00018082,2]
[367620008,1750877448615,-352.24067637,0.00018082,2]
[367620009,1750877448625,-490.31,0.00018082,2]
[367620010,1750877448635,-536.65,0.00018082,2]
[367620011,1750877448644,-1074.84,0.00018082,2]
[367620012,1750877448653,-460.0,0.00018082,2]
[367620013,1750877448663,-1383.38,0.00018082,2]
[367620014,1750877448672,-1889.89,0.00018082,2]
[367620015,1750877448682,-460.0,0.00018082,2]
[367620016,1750877448691,-3898.37,0.00018082,2]
[367620017,1750877448701,-460.0,0.00018082,2]
[367620018,1750877448711,-460.0,0.00018082,2]
[367620019,1750877448720,-502.38,0.00018082,2]
[367620020,1750877448729,-460.0,0.00018082,2]
[367620021,1750877448739,-460.0,0.00018082,2]
[367620022,1750877448748,-460.0,0.00018082,2]
[367620023,1750877448757,-460.0,0.00018082,2]
[367620024,1750877448768,-554.76,0.00018082,2]
[367620025,1750877448777,-460.0,0.00018082,2]
[367620026,1750877448787,-1774.78,0.00018082,2]
[367620027,1750877448796,-919.71,0.00018082,2]
[367620028,1750877448806,-914.32,0.00018082,2]
[367620029,1750877448815,-1382.86,0.00018082,2]
[367620030,1750877448825,-460.0,0.00018082,2]
[367620031,1750877448835,-1603.75,0.00018082,2]
[367620032,1750877448844,-1011.24,0.00018082,2]
[367620033,1750877448854,-1958.91,0.00018082,2]
[367620034,1750877448864,-460.0,0.00018082,2]
[367620035,1750877448874,-749.81,0.00018082,2]
[367620036,1750877448883,-527.1,0.00018082,2]
[367620037,1750877448892,-2383.52,0.00018082,2]
[367620038,1750877448902,-652.94,0.00018082,2]
[367620039,1750877448911,-465.06,0.00018082,2]
[367620040,1750877448921,-2133.96,0.00018082,2]
[367620041,1750877448930,-460.0,0.00018082,2]
[367620042,1750877448939,-460.0,0.00018082,2]
[367620043,1750877448949,-460.0,0.00018082,2]
[367620044,1750877448958,-702.11,0.00018082,2]
[367620045,1750877448967,-518.51,0.00018082,2]
[367620046,1750877448976,-151.0,0.000181,2]
[367620047,1750877448986,-151.0,0.00018141,2]
[367620048,1750877448995,-151.0,0.00018141,2]
[367620049,1750877449005,-3367.71177192,0.00018141,2]
[367620050,1750877449147,-1000.0,0.00018176,5]
[367620051,1750877449157,-965.0,0.00018208,2]
[367620052,1750877449167,-654.0,0.00018208,2]
[367620053,1750877449177,-2161.0,0.00018208,2]
[367620054,1750877449187,-406.0,0.00018208,2]
[367620055,1750877449199,-406.0,0.00018208,2]
[367620056,1750877449209,-152.636,0.00018208,2]
[367620057,1750877449219,-1500.0,0.00018209,2]
[367620058,1750877449228,-159.1692736,0.00018223,2]
[367620059,1750877449238,-1500.0,0.00018231,2]
[367620060,1750877449248,-168.0,0.00018243,2]
[367620061,1750877449257,-168.0,0.00018247,2]
[367620062,1750877449267,-1097.15699883,0.00018256,2]
[367620063,1750877449278,-168.0,0.00018336,2]
[367620064,1750877449290,-151.0,0.00018356,2]
[367620065,1750877449301,-151.0,0.00018356,2]
[367620066,1750877449311,-252.125982,0.00018356,2]
[367620067,1750877449321,-151.0,0.00018356,2]
[367620068,1750877449331,-314.19749,0.00018356,2]
[367620069,1750877449340,-314.19749,0.00018356,2]
[367620070,1750877449349,-151.0,0.00018356,2]
[367620071,1750877449359,-575.93,0.00018356,2]
[367620072,1750877449368,-302.67502131,0.00018356,2]
[367620073,1750877449377,-460.0,0.00018356,2]
[367620074,1750877449386,-625.58,0.00018356,2]
[367620075,1750877449395,-420.49,0.00018356,2]
[367620076,1750877449405,-460.0,0.00018356,2]
[367620077,1750877449414,-460.0,0.00018356,2]
[367620078,1750877449423,-151.0,0.00018356,2]
[367620079,1750877449432,-151.0,0.00018356,2]
[367620080,1750877449442,-151.340237,0.00018356,2]
[367620081,1750877449451,-151.340237,0.00018356,2]
[367620082,1750877449460,-237.94,0.00018356,2]
[367620083,1750877449469,-151.0,0.00018356,2]
[367620084,1750877449479,-151.0,0.00018356,2]
[367620085,1750877449488,-460.0,0.00018356,2]
[367620086,1750877449498,-460.0,0.00018356,2]
[367620087,1750877449507,-795.72,0.00018356,2]
[367620088,1750877449517,-460.0,0.00018356,2]
[367620089,1750877449526,-460.0,0.00018356,2]
[367620090,1750877449536,-423.68,0.00018356,2]
[367620091,1750877449545,-597.1,0.00018356,2]
[367620092,1750877449555,-460.0,0.00018356,2]
[367620093,1750877449564,-1064.04,0.00018356,2]
[367620094,1750877449573,-2140.62,0.00018356,2]
[367620095,1750877449582,-785.0,0.00018356,2]
[367620096,1750877449592,-4129.16,0.00018356,2]
[367620097,1750877449602,-1999.61,0.00018356,2]
[367620098,1750877449612,-1521.43,0.00018356,2]
[367620099,1750877449621,-460.0,0.00018356,2]
[367620100,1750877449630,-151.0,0.00018356,2]
[367620101,1750877449640,-680.21,0.00018356,2]
[367620102,1750877449649,-508.55,0.00018356,2]
[367620103,1750877449658,-915.74,0.00018356,2]
[367620104,1750877449668,-616.37,0.00018356,2]
[367620105,1750877449677,-490.31,0.00018356,2]
[367620106,1750877449686,-536.65,0.00018356,2]
[367620107,1750877449695,-1074.84,0.00018356,2]
[367620108,1750877449704,-460.0,0.00018356,2]
[367620109,1750877449713,-1383.38,0.00018356,2]
[367620110,1750877449723,-1889.89,0.00018356,2]
[367620111,1750877449733,-460.0,0.00018356,2]
[367620112,1750877449742,-3898.37,0.00018356,2]
[367620113,1750877449751,-460.0,0.00018356,2]
[367620114,1750877449761,-460.0,0.00018356,2]
[367620115,1750877449770,-502.38,0.00018356,2]
[367620116,1750877449779,-460.0,0.00018356,2]
[367620117,1750877449789,-460.0,0.00018356,2]
[367620118,1750877449798,-460.0,0.00018356,2]
[367620119,1750877449807,-460.0,0.00018356,2]
[367620120,1750877449816,-554.76,0.00018356,2]
[367620121,1750877449825,-460.0,0.00018356,2]
[367620122,1750877449835,-1774.78,0.00018356,2]
[367620123,1750877449844,-919.71,0.00018356,2]
[367620124,1750877449853,-914.32,0.00018356,2]
[367620125,1750877449863,-1382.86,0.00018356,2]
[367620126,1750877449872,-151.0,0.00018356,2]
[367620127,1750877449883,-366.58,0.00018356,2]
[367620128,1750877449893,-1603.75,0.00018356,2]
[367620129,1750877449902,-818.21458948,0.00018356,2]
[367620130,1750877450097,-193.02541052,0.00018356,2]
[367620131,1750877450107,-234.95048153,0.00018356,2]
[367620132,1750877450118,-1385.2,0.00018356,2]
[367620133,1750877450249,-338.75951847,0.00018356,2]
[367620134,1750877450259,-460.0,0.00018356,2]
[367620135,1750877450268,-749.81,0.00018356,2]
[367620136,1750877450280,-527.1,0.00018356,2]
[367620137,1750877450289,-2383.52,0.00018356,2]
[367620138,1750877450298,-652.94,0.00018356,2]
[367620139,1750877450307,-465.06,0.00018356,2]
[367620140,1750877450316,-2133.96,0.00018356,2]
[367620141,1750877450326,-460.0,0.00018356,2]
[367620142,1750877450336,-460.0,0.00018356,2]
[367620143,1750877450346,-460.0,0.00018356,2]
[367620144,1750877450355,-702.11,0.00018356,2]
[367620145,1750877450364,-518.51,0.00018356,2]
[367620146,1750877450373,-215.0738,0.00018369,2]
[367620147,1750877450382,-3367.71177192,0.00018383,2]
[367620148,1750877450392,-151.0,0.000184,2]
[367620149,1750877450402,-637.0,0.00018404,2]
[367620150,1750877450412,-500.0,0.0001845,2]
[367620151,1750877450422,-500.0,0.0001845,2]
[367620152,1750877450431,-500.0,0.0001845,2]
[367620153,1750877450445,-500.0,0.0001845,2]
[367620154,1750877450459,-458.62638282,0.0001845,2]
[367620155,1750877450473,-458.62638282,0.0001845,2]
[367620156,1750877450486,-500.0,0.0001845,2]
[367620157,1750877450497,-151.0,0.0001845,2]
[367620158,1750877450509,-177.74502,0.0001845,2]
[367620159,1750877450522,-278.915758,0.0001845,2]
[367620160,1750877450535,-239.79863,0.0001845,2]
[367620161,1750877450548,-151.0,0.000185,2]
[367620162,1750877450561,-640.0,0.000185,2]
[367620163,1750877450574,-3367.71177192,0.00018624,2]
[367620164,1750877450587,-151.0,0.0001863,2]
[367620165,1750877450600,-151.0,0.0001863,2]
[367620166,1750877450613,-575.93,0.0001863,2]
[367620167,1750877450626,-460.0,0.0001863,2]
[367620168,1750877450638,-625.58,0.0001863,2]
[367620169,1750877450650,-460.0,0.0001863,2]
[367620170,1750877450661,-151.0,0.0001863,2]
[367620171,1750877450673,-460.0,0.0001863,2]
[367620172,1750877450686,-460.0,0.0001863,2]
[367620173,1750877450699,-460.0,0.0001863,2]
[367620174,1750877450712,-795.72,0.0001863,2]
[367620175,1750877450723,-460.0,0.0001863,2]
[367620176,1750877450734,-460.0,0.0001863,2]
[367620177,1750877450746,-597.1,0.0001863,2]
[367620178,1750877450756,-460.0,0.0001863,2]
[367620179,1750877450769,-1064.04,0.0001863,2]
[367620180,1750877450781,-2140.62,0.0001863,2]
[367620181,1750877450794,-785.0,0.0001863,2]
[367620182,1750877450806,-4129.16,0.0001863,2]
[367620183,1750877450820,-1999.61,0.0001863,2]
[367620184,1750877450832,-1521.43,0.0001863,2]
[367620185,1750877450845,-460.0,0.0001863,2]
[367620186,1750877450859,-680.21,0.0001863,2]
[367620187,1750877450870,-508.55,0.0001863,2]
[367620188,1750877450880,-915.74,0.0001863,2]
[367620189,1750877450891,-616.37,0.0001863,2]
[367620190,1750877450901,-490.31,0.0001863,2]
[367620191,1750877450914,-536.65,0.0001863,2]
[367620192,1750877450928,-1074.84,0.0001863,2]
[367620193,1750877450940,-460.0,0.0001863,2]
[367620194,1750877450951,-1383.38,0.0001863,2]
[367620195,1750877450962,-1889.89,0.0001863,2]
[367620196,1750877450973,-460.0,0.0001863,2]
[367620197,1750877450985,-3898.37,0.0001863,2]
[367620198,1750877450997,-460.0,0.0001863,2]
[367620199,1750877451009,-460.0,0.0001863,2]
[367620200,1750877451020,-502.38,0.0001863,2]
[367620201,1750877451030,-460.0,0.0001863,2]
[367620202,1750877451041,-460.0,0.0001863,2]
[367620203,1750877451052,-460.0,0.0001863,2]
[367620204,1750877451063,-460.0,0.0001863,2]
[367620205,1750877451075,-554.76,0.0001863,2]
[367620206,1750877451087,-460.0,0.0001863,2]
[367620207,1750877451111,-1774.78,0.0001863,2]
[367620208,1750877451123,-919.71,0.0001863,2]
[367620209,1750877451134,-914.32,0.0001863,2]
[367620210,1750877451145,-1382.86,0.0001863,2]
[367620211,1750877451155,-1603.75,0.0001863,2]
[367620212,1750877451166,-1011.24,0.0001863,2]
[367620213,1750877451178,-1958.91,0.0001863,2]
[367620214,1750877451189,-460.0,0.0001863,2]
[367620215,1750877451204,-749.81,0.0001863,2]
[367620216,1750877451215,-527.1,0.0001863,2]
[367620217,1750877451226,-2383.52,0.0001863,2]
[367620218,1750877451239,-652.94,0.0001863,2]
[367620219,1750877451250,-465.06,0.0001863,2]
[367620220,1750877451262,-2133.96,0.0001863,2]
[367620221,1750877451274,-460.0,0.0001863,2]
[367620222,1750877451286,-460.0,0.0001863,2]
[367620223,1750877451297,-460.0,0.0001863,2]
[367620224,1750877451308,-702.11,0.0001863,2]
[367620225,1750877451319,-518.51,0.0001863,2]
[367620226,1750877451330,-40.17792741,0.000187,2]
[367620227,1750877451381,-110.82207259,0.000187,2]
[367620228,1750877451396,-2000.0,0.00018757,2]
[367620229,1750877451410,-637.0,0.0001877,2]
[367620230,1750877451424,-475.30553264,0.00018779,2]
[367620231,1750877451702,-460.0,0.00016438,2]
[367620232,1750877451715,-24.69446736,0.00018779,2]
[367620233,1750877451725,-151.0,0.000188,2]
[367620234,1750877451735,-1097.15699883,0.00018804,2]
[367620235,1750877451745,-160.0,0.00018844,3]
[367620236,1750877451754,-151.0,0.00018865,2]
[367620237,1750877451764,-151.0,0.00018865,2]
[367620238,1750877451774,-151.0,0.00018865,2]
[367620239,1750877451783,-151.0,0.00018865,2]
[367620240,1750877451792,-3367.71177192,0.00018866,2]
[367620241,1750877451802,-151.0,0.000189,2]
[367620242,1750877451812,-1642.24560193,0.000189,2]
[367620243,1750877451821,-168.0,0.000189,2]
[367620244,1750877451831,-575.93,0.00018904,2]
[367620245,1750877451841,-460.0,0.00018904,2]
[367620246,1750877451851,-625.58,0.00018904,2]
[367620247,1750877451861,-156.23147005,0.00018904,2]
[367620248,1750877451871,-151.0,0.00018904,2]
[367620249,1750877451881,-151.0,0.00018904,2]
[367620250,1750877451890,-460.0,0.00018904,2]
[367620251,1750877451899,-151.0,0.00018904,2]
[367620252,1750877451909,-151.0,0.00018904,2]
[367620253,1750877451920,-151.340237,0.00018904,2]
[367620254,1750877451931,-151.340237,0.00018904,2]
[367620255,1750877451945,-151.0,0.00018904,2]
[367620256,1750877451956,-151.0,0.00018904,2]
[367620257,1750877451966,-291.58984428,0.00018904,2]
[367620258,1750877451976,-460.0,0.00018904,2]
[367620259,1750877451986,-795.72,0.00018904,2]
[367620260,1750877451995,-460.0,0.00018904,2]
[367620261,1750877452007,-460.0,0.00018904,2]
[367620262,1750877452017,-597.1,0.00018904,2]
[367620263,1750877452026,-460.0,0.00018904,2]
[367620264,1750877452035,-1064.04,0.00018904,2]
[367620265,1750877452046,-2140.62,0.00018904,2]
[367620266,1750877452056,-785.0,0.00018904,2]
[367620267,1750877452067,-4129.16,0.00018904,2]
[367620268,1750877452077,-1999.61,0.00018904,2]
[367620269,1750877452087,-460.0,0.00018904,2]
[367620270,1750877452096,-1521.43,0.00018904,2]
[367620271,1750877452106,-151.0,0.00018904,2]
[367620272,1750877452116,-680.21,0.00018904,2]
[367620273,1750877452126,-508.55,0.00018904,2]
[367620274,1750877452135,-915.74,0.00018904,2]
[367620275,1750877452145,-616.37,0.00018904,2]
[367620276,1750877452154,-490.31,0.00018904,2]
[367620277,1750877452163,-536.65,0.00018904,2]
[367620278,1750877452173,-1074.84,0.00018904,2]
[367620279,1750877452182,-460.0,0.00018904,2]
[367620280,1750877452193,-1383.38,0.00018904,2]
[367620281,1750877452506,-1889.89,0.00018904,2]
[367620282,1750877452521,-460.0,0.00018904,2]
[367620283,1750877452531,-3898.37,0.00018904,2]
[367620284,1750877452541,-460.0,0.00018904,2]
[367620285,1750877452551,-460.0,0.00018904,2]
[367620286,1750877452560,-502.38,0.00018904,2]
[367620287,1750877452569,-460.0,0.00018904,2]
[367620288,1750877452580,-460.0,0.00018904,2]
[367620289,1750877452590,-460.0,0.00018904,2]
[367620290,1750877452600,-460.0,0.00018904,2]
[367620291,1750877452615,-554.76,0.00018904,2]
[367620292,1750877452625,-460.0,0.00018904,2]
[367620293,1750877452635,-919.71,0.00018904,2]
[367620294,1750877452645,-1774.78,0.00018904,2]
[367620295,1750877452655,-64.34624006,0.00018904,2]
[367620296,1750877452704,-849.97375994,0.00018904,2]
[367620297,1750877452714,-151.0,0.00018904,2]
[367620298,1750877452723,-1382.86,0.00018904,2]
[367620299,1750877452733,-1603.75,0.00018904,2]
[367620300,1750877452743,-1011.24,0.00018904,2]
[367620301,1750877452752,-1958.91,0.00018904,2]
[367620302,1750877452761,-460.0,0.00018904,2]
[367620303,1750877452771,-749.81,0.00018904,2]
[367620304,1750877452780,-527.1,0.00018904,2]
[367620305,1750877452789,-2383.52,0.00018904,2]
[367620306,1750877452799,-652.94,0.00018904,2]
[367620307,1750877452809,-465.06,0.00018904,2]
[367620308,1750877452818,-460.0,0.00018904,2]
[367620309,1750877452827,-2133.96,0.00018904,2]
[367620310,1750877452837,-460.0,0.00018904,2]
[367620311,1750877452847,-460.0,0.00018904,2]
[367620312,1750877452860,-702.11,0.00018904,2]
[367620313,1750877452870,-518.51,0.00018904,2]
[367620314,1750877452880,-12640.82011563,0.00018986,2]
[367620315,1750877541096,222.0415251,0.00015796,2]
[367620316,1750877541210,171.31406248,0.000161,2]
[367620317,1750877593391,3000.0,0.00023,30]
[367620318,1750877635912,935.54259531,0.000161,2]
[367620319,1750877868559,1838.21045219,0.000161,2]
[367620321,1750877901537,2636.25818774,0.00015796,2]
[367620322,1750877901559,20000.0,0.00015796,2]
[367620323,1750877901582,2263.74181226,0.00015796,2]
[367620327,1750878089594,4941.0,0.000161,2]
[367620328,1750878099421,380.220197,0.00013699,2]
[367620330,1750878280720,715.132082,0.00015437,2]
[367620331,1750878284933,10000.0,0.00015796,2]
[367620332,1750878404641,530.2301953,0.00015506,2]
[367620334,1750878495008,1169.67571344,0.0001561,5]
[367620335,1750878495030,8714.4319425,0.0001561,5]
[367620337,1750878552083,8000.0,0.00015236,5]
[367620340,1750878566949,3285.5680575,0.00015236,5]
[367620341,1750878566973,8946.21663062,0.00015236,5]
[367620358,1750878631939,-151.0,0.00016428,2]
[367620360,1750878631949,-300.0,0.00016435,2]
[367620362,1750878631958,-1200.0,0.00016435,2]
[367620364,1750878631967,-300.0,0.00016436,2]
[367620366,1750878631976,-300.0,0.00016436,2]
[367620368,1750878631985,-300.0,0.00016436,2]
[367620369,1750878631994,-1484.74415375,0.00016437,2]
[367620372,1750878632007,-555.00371477,0.00016437,2]
[367620376,1750878632043,-809.77192445,0.00016437,2]
[367620427,1750878637938,-2670.53923993,0.00016437,2]
[367620428,1750878637948,-500.0,0.00016437,2]
[367620429,1750878637957,-361.19300755,0.00016437,2]
[367620430,1750878637966,-500.0,0.00016437,2]
[367620431,1750878637975,-263.05544026,0.00016437,2]
[367620432,1750878637985,-500.0,0.00016437,2]
[367620433,1750878637994,-500.0,0.00016437,2]
[367620434,1750878638003,-480.0,0.00016437,2]
[367620435,1750878638011,-393.18979179,0.00016437,2]
[367620436,1750878638020,-500.0,0.00016437,2]
[367620437,1750878638029,-500.0,0.00016437,2]
[367620438,1750878638038,-500.0,0.00016437,2]
[367620440,1750878638047,-500.0,0.00016437,2]
[367620442,1750878638057,-500.0,0.00016437,2]
[367620444,1750878638065,-400.92427575,0.00016437,2]
[367620446,1750878638080,-99.07572425,0.00016437,2]
[367620448,1750878638089,-500.0,0.00016437,2]
[367620450,1750878638099,-605.0,0.00016437,2]
[367620452,1750878638109,-500.0,0.00016437,2]
[367620454,1750878638119,-500.0,0.00016437,2]
[367620456,1750878638128,-500.0,0.00016437,2]
[367620458,1750878638139,-500.0,0.00016437,2]
[367620460,1750878638149,-460.0,0.00016438,2]
[367620462,1750878638158,-460.0,0.00016438,2]
[367620463,1750878638167,-460.0,0.00016438,2]
[367620465,1750878638177,-460.0,0.00016438,2]
[367620467,1750878638186,-500.0,0.00016438,2]
[367620469,1750878638196,-500.3111991,0.00016438,2]
[367620472,1750878638205,-500.0,0.00016438,2]
[367620474,1750878638214,-500.0,0.00016438,2]
[367620476,1750878638224,-283.66359152,0.00016438,2]
[367620478,1750878638233,-460.0,0.00016438,2]
[367620480,1750878638243,-480.99,0.00016438,2]
[367620482,1750878638252,-358.67057753,0.00016438,2]
[367620484,1750878638261,-460.0,0.00016438,2]
[367620486,1750878638270,-460.0,0.00016438,2]
[367620488,1750878638280,-460.0,0.00016438,2]
[367620490,1750878638289,-460.0,0.00016438,2]
[367620492,1750878638298,-460.0,0.00016438,2]
[367620494,1750878638307,-460.0,0.00016438,2]
[367620496,1750878638316,-460.0,0.00016438,2]
[367620498,1750878638325,-460.0,0.00016438,2]
[367620500,1750878638335,-386.22210544,0.00016438,2]
[367620502,1750878638344,-460.0,0.00016438,2]
[367620504,1750878638353,-460.0,0.00016438,2]
[367620506,1750878638362,-460.0,0.00016438,2]
[367620508,1750878638371,-460.0,0.00016438,2]
[367620510,1750878638380,-460.0,0.00016438,2]
[367620512,1750878638390,-460.0,0.00016438,2]
[367620515,1750878638399,-515.8033728,0.00016438,2]
[367620516,1750878638408,-460.0,0.00016438,2]
[367620518,1750878638418,-460.0,0.00016438,2]
[367620520,1750878638427,-191.23724265,0.00016438,2]
[367620522,1750878638438,-460.0,0.00016438,2]
[367620525,1750878638447,-460.87682438,0.00016438,2]
[367620526,1750878638457,-460.0,0.00016438,2]
[367620528,1750878638466,-460.0,0.00016438,2]
[367620531,1750878638475,-363.07572637,0.00016438,2]
[367620533,1750878638484,-460.0,0.00016438,2]
[367620535,1750878638494,-460.0,0.00016438,2]
[367620537,1750878638503,-460.0,0.00016438,2]
[367620539,1750878638512,-420.0,0.00016438,2]
[367620541,1750878638521,-460.0,0.00016438,2]
[367620542,1750878638530,-265.25013793,0.00016438,2]
[367620545,1750878638540,-460.0,0.00016438,2]
[367620546,1750878638551,-460.0,0.00016438,2]
[367620548,1750878638559,-460.0,0.00016438,2]
[367620550,1750878638569,-460.0,0.00016438,2]
[367620551,1750878638577,-460.0,0.00016438,2]
[367620552,1750878638587,-460.0,0.00016438,2]
[367620553,1750878638597,-460.0,0.00016438,2]
[367620554,1750878638607,-460.0,0.00016438,2]
[367620555,1750878638617,-460.0,0.00016438,2]
[367620556,1750878638627,-460.0,0.00016438,2]
[367620557,1750878638637,-460.0,0.00016438,2]
[367620558,1750878638647,-460.0,0.00016438,2]
[367620559,1750878638656,-460.0,0.00016438,2]
[367620560,1750878638666,-453.61960535,0.00016438,2]
[367620561,1750878638676,-460.0,0.00016438,2]
[367620562,1750878638686,-460.0,0.00016438,2]
[367620563,1750878638702,-460.0,0.00016438,2]
[367620565,1750878638715,-460.0,0.00016438,2]
[367620566,1750878638724,-498.57522429,0.00016438,2]
[367620567,1750878638734,-472.84290823,0.00016438,2]
[367620568,1750878638743,-460.0,0.00016438,2]
[367620569,1750878638754,-460.0,0.00016438,2]
[367620570,1750878638764,-460.0,0.00016438,2]
[367620571,1750878638777,-460.0,0.00016438,2]
[367620572,1750878638786,-460.0,0.00016438,2]
[367620573,1750878638796,-460.0,0.00016438,2]
[367620574,1750878638806,-460.0,0.00016438,2]
[367620575,1750878638816,-460.0,0.00016438,2]
[367620576,1750878638826,-460.0,0.00016438,2]
[367620577,1750878638836,-460.0,0.00016438,2]
[367620578,1750878638845,-460.0,0.00016438,2]
[367620579,1750878638855,-460.0,0.00016438,2]
[367620580,1750878638864,-460.0,0.00016438,2]
[367620581,1750878638873,-460.0,0.00016438,2]
[367620582,1750878638883,-460.0,0.00016438,2]
[367620583,1750878638894,-460.0,0.00016438,2]
[367620584,1750878638904,-460.0,0.00016438,2]
[367620585,1750878638913,-460.0,0.00016438,2]
[367620586,1750878638922,-460.0,0.00016438,2]
[367620587,1750878638932,-431.46258245,0.00016438,2]
[367620588,1750878638941,-460.0,0.00016438,2]
[367620589,1750878638951,-460.0,0.00016438,2]
[367620590,1750878638960,-460.0,0.00016438,2]
[367620591,1750878638971,-512.51,0.00016438,2]
[367620592,1750878638980,-460.0,0.00016438,2]
[367620593,1750878638989,-460.0,0.00016438,2]
[367620594,1750878638998,-460.0,0.00016438,2]
[367620595,1750878639008,-460.0,0.00016438,2]
[367620596,1750878639017,-460.0,0.00016438,2]
[367620597,1750878639027,-440.0,0.00016438,2]
[367620598,1750878639036,-237.94,0.00016438,2]
[367620599,1750878639046,-460.58583264,0.00016438,2]
[367620600,1750878639065,-460.0,0.00016438,2]
[367620601,1750878639075,-446.41072766,0.00016438,2]
[367620602,1750878639085,-460.0,0.00016438,2]
[367620603,1750878639095,-460.0,0.00016438,2]
[367620604,1750878639107,-460.0,0.00016438,2]
[367620605,1750878639117,-460.0,0.00016438,2]
[367620606,1750878639126,-460.0,0.00016438,2]
[367620607,1750878639136,-460.0,0.00016438,2]
[367620608,1750878639151,-460.0,0.00016438,2]
[367620609,1750878639160,-378.47710096,0.00016438,2]
[367620610,1750878639171,-430.0,0.00016438,2]
[367620611,1750878639180,-460.0,0.00016438,2]
[367620612,1750878639191,-460.0,0.00016438,2]
[367620613,1750878639201,-348.80380426,0.00016438,2]
[367620614,1750878639211,-460.0,0.00016438,2]
[367620615,1750878639221,-460.0,0.00016438,2]
[367620616,1750878639230,-460.0,0.00016438,2]
[367620617,1750878639239,-460.0,0.00016438,2]
[367620618,1750878639250,-460.0,0.00016438,2]
[367620619,1750878639260,-366.9651575,0.00016438,2]
[367620620,1750878639270,-460.0,0.00016438,2]
[367620621,1750878639279,-460.0,0.00016438,2]
[367620622,1750878639289,-468.97,0.00016438,2]
[367620623,1750878639298,-460.39142013,0.00016438,2]
[367620624,1750878639308,-460.0,0.00016438,2]
[367620625,1750878639317,-460.0,0.00016438,2]
[367620626,1750878639326,-460.0,0.00016438,2]
[367620627,1750878639335,-460.0,0.00016438,2]
[367620628,1750878639562,-460.0,0.00016438,2]
[367620629,1750878639571,-460.0,0.00016438,2]
[367620630,1750878639581,-460.0,0.00016438,2]
[367620631,1750878639590,-143.09635384,0.00016438,2]
[367620633,1750878639625,-316.90364616,0.00016438,2]
[367620634,1750878639634,-460.0,0.00016438,2]
[367620636,1750878639645,-460.0,0.00016438,2]
[367620637,1750878639655,-460.0,0.00016438,2]
[367620638,1750878639664,-460.0,0.00016438,2]
[367620639,1750878639673,-460.0,0.00016438,2]
[367620640,1750878639683,-460.0,0.00016438,2]
[367620641,1750878639693,-211.46932528,0.00016438,2]
[367620642,1750878639703,-460.0,0.00016438,2]
[367620643,1750878639712,-460.0,0.00016438,2]
[367620644,1750878639725,-460.0,0.00016438,2]